bitfinex-derivatives/quotes_BTCF0:USTF0_20250208
["timestamp","ask_amount","ask_price","bid_price","bid_amount"]
[1739019143031,0.24834414,96088.0,96087.0,0.4243352]
[1739019143232,0.24934414,96088.0,96087.0,0.4243352]
[1739019144242,0.001,96088.0,96087.0,0.4243352]
[1739019144431,0.003,96088.0,96087.0,0.4243352]
[1739019149034,0.003,96088.0,96087.0,0.2081352]
[1739019163854,0.003,96088.0,96087.0,0.9297352]
[1739019170057,0.2201,96148.0,96087.0,0.7216]
[1739019170260,0.0323,96119.0,96111.0,0.5688832]
[1739019170554,0.02315726,96120.0,96118.0,0.2080681]
[1739019170752,0.02315726,96120.0,96119.0,0.3608]
[1739019172959,0.02615726,96120.0,96119.0,0.3608]
[1739019174158,0.02615726,96120.0,96119.0,0.37178618]
[1739019178952,0.02615726,96120.0,96119.0,0.57985208]
[1739019181957,0.003,96120.0,96119.0,0.57985208]
[1739019184559,0.003,96120.0,96119.0,0.21905208]
[1739019184762,0.003,96120.0,96119.0,0.57985208]
[1739019185855,0.003,96120.0,96119.0,0.21905208]
[1739019186063,0.003,96120.0,96119.0,0.57985208]
[1739019194263,0.00015595,96129.0,96128.0,0.2080465]
[1739019194565,0.00015595,96129.0,96128.0,0.5688465]
[1739019195571,0.00415595,96129.0,96128.0,0.5698465]
[1739019195973,0.00815595,96129.0,96128.0,0.5698465]
[1739019203869,0.00815595,96129.0,96128.0,0.3618]
[1739019209170,0.00815595,96129.0,96128.0,0.5698465]
[1739019215582,0.3608,96147.0,96144.0,0.2080113]
[1739019217084,0.002,96146.0,96144.0,0.2090113]
[1739019217286,0.002,96146.0,96144.0,0.2100113]
[1739019217481,0.3608,96147.0,96144.0,0.2090113]
[1739019217686,0.3628,96147.0,96144.0,0.2100113]
[1739019218282,0.002,96147.0,96146.0,0.2080076]
[1739019219192,0.0303,96153.0,96148.0,0.2080026]
[1739019219383,0.0303,96153.0,96149.0,0.3608]
[1739019220675,0.0303,96153.0,96149.0,0.3618]
[1739019221085,0.0303,96153.0,96149.0,0.5698007]
[1739019221691,0.0303,96153.0,96149.0,0.5708007]
[1739019222102,0.0303,96153.0,96152.0,0.2079946]
[1739019222296,0.0622,96157.0,96153.0,0.2079919]
[1739019223804,0.0622,96157.0,96153.0,0.2089919]
[1739019225403,0.2079712,96163.0,96153.0,0.2099919]
[1739019226503,0.3608,96164.0,96153.0,0.2099919]
[1739019227399,0.3608,96164.0,96155.0,0.207988]
[1739019227702,0.0304,96165.0,96158.0,0.2079814]
[1739019229502,0.0304,96165.0,96157.0,0.3608]
[1739019229704,0.2079692,96164.0,96157.0,0.3608]
[1739019230007,0.2079692,96164.0,96158.0,0.002]
[1739019230892,0.2079692,96164.0,96158.0,0.001]
[1739019231302,0.2079692,96164.0,96157.0,0.3628]
[1739019232401,0.2079692,96164.0,96158.0,0.001]
[1739019232999,0.2079692,96164.0,96157.0,0.3628]
[1739019233199,0.2079692,96164.0,96157.0,0.37337359]
[1739019233399,0.2079692,96164.0,96157.0,0.37237359]
[1739019233607,0.2079692,96164.0,96158.0,0.002]
[1739019234094,0.2079692,96164.0,96158.0,0.001]
[1739019234299,0.2079692,96164.0,96157.0,0.37337359]
[1739019235607,0.2079692,96164.0,96158.0,0.001]
[1739019236212,0.2079692,96164.0,96158.0,0.002]
[1739019236608,0.2079692,96164.0,96158.0,0.001]
[1739019237305,0.2079692,96164.0,96158.0,0.002]
[1739019237505,0.207972,96163.0,96158.0,0.002]
[1739019237914,0.0304,96165.0,96158.0,0.002]
[1739019238211,0.2079779,96160.0,96158.0,0.002]
[1739019244013,0.0304,96165.0,96158.0,0.002]
[1739019244201,0.2079695,96164.0,96158.0,0.002]
[1739019244914,0.2079718,96163.0,96158.0,0.002]
[1739019245717,0.2079718,96163.0,96158.0,0.001]
[1739019245924,0.2079718,96163.0,96158.0,0.002]
[1739019247115,0.207973,96162.0,96158.0,0.002]
[1739019248822,0.207973,96162.0,96158.0,0.001]
[1739019249024,0.207973,96162.0,96158.0,0.002]
[1739019250611,0.0304,96165.0,96158.0,0.002]
[1739019250814,0.2383675,96165.0,96158.0,0.002]
[1739019251016,0.2079689,96164.0,96158.0,0.002]
[1739019251821,0.2079689,96164.0,96158.0,0.001]
[1739019252019,0.2079689,96164.0,96158.0,0.002]
[1739019252426,0.2079689,96164.0,96158.0,0.001]
[1739019252615,0.2079689,96164.0,96158.0,0.002]
[1739019253020,0.2079689,96164.0,96158.0,0.001]
[1739019253221,0.2079689,96164.0,96158.0,0.002]
[1739019253926,0.0309,96166.0,96158.0,0.002]
[1739019254526,0.0309,96166.0,96160.0,0.2079772]
[1739019254924,0.00156055,96167.0,96160.0,0.2079772]
[1739019256020,0.00156055,96167.0,96160.0,0.2089772]
[1739019256219,0.00156055,96167.0,96160.0,0.2099772]
[1739019267240,0.00156055,96167.0,96166.0,0.3608]
[1739019268940,0.00156055,96167.0,96166.0,0.3628]
[1739019278960,4e-05,96170.0,96166.0,0.3628]
[1739019280046,4e-05,96170.0,96166.0,0.3618]
[1739019280353,4e-05,96170.0,96166.0,0.3628]
[1739019280548,4e-05,96170.0,96166.0,0.3618]
[1739019280748,4e-05,96170.0,96166.0,0.3628]
[1739019286051,4e-05,96170.0,96166.0,0.5707623]
[1739019287354,4e-05,96170.0,96166.0,0.3628]
[1739019287659,4e-05,96170.0,96168.0,0.2079595]
[1739019288852,4e-05,96170.0,96168.0,0.2089595]
[1739019289349,4e-05,96170.0,96168.0,0.2099595]
[1739019289751,4e-05,96170.0,96168.0,0.002]
[1739019289959,4e-05,96170.0,96168.0,0.001]
[1739019290258,4e-05,96170.0,96168.0,0.002]
[1739019290459,4e-05,96170.0,96168.0,0.001]
[1739019291960,4e-05,96170.0,96168.0,0.2089591]
[1739019295360,4e-05,96170.0,96169.0,0.3608]
[1739019296760,4e-05,96170.0,96169.0,0.3618]
[1739019303567,4e-05,96170.0,96169.0,0.5697578]
[1739019309276,4e-05,96170.0,96169.0,0.7859578]
[1739019309976,0.0309,96194.0,96169.0,0.878]
[1739019310162,0.0309,96194.0,96189.0,0.2079139]
[1739019310972,0.0631,96199.0,96186.0,0.3608]
[1739019310973,0.0631,96199.0,96190.0,0.2079109]
[1739019311676,0.0631,96199.0,96189.0,0.06657934]
[1739019312175,0.0631,96199.0,96190.0,0.001]
[1739019312368,0.0631,96199.0,96190.0,0.002]
[1739019312766,0.0631,96199.0,96190.0,0.001]
[1739019313273,0.0631,96199.0,96191.0,0.3608]
[1739019314971,0.0631,96199.0,96191.0,0.3618]
[1739019315472,0.0631,96199.0,96191.0,0.3628]
[1739019315875,0.2709937,96199.0,96191.0,0.3628]
[1739019316077,0.0631,96199.0,96191.0,0.3628]
[1739019316380,0.207904,96194.0,96191.0,0.3628]
[1739019316774,0.0327,96193.0,96191.0,0.3628]
[1739019316985,0.0327,96193.0,96191.0,0.002]
[1739019317282,0.2406068,96193.0,96191.0,0.002]
[1739019317487,0.2406068,96193.0,96191.0,0.001]
[1739019317784,0.2406068,96193.0,96191.0,0.002]
[1739019318277,0.2406068,96193.0,96191.0,0.001]
[1739019318477,0.2406068,96193.0,96191.0,0.002]
[1739019318784,0.25135632,96193.0,96191.0,0.002]
[1739019320676,0.2406068,96193.0,96191.0,0.002]
[1739019323084,0.0327,96193.0,96182.0,0.00015596]
[1739019323384,0.5687275,96183.0,96182.0,0.00015596]
[1739019324377,0.3608,96183.0,96159.0,0.3608]
[1739019324579,0.27353794,96169.0,96159.0,0.3608]
[1739019324882,0.207964,96167.0,96159.0,0.3608]
[1739019325079,0.0625,96166.0,96159.0,0.37154192]
[1739019325683,0.2079773,96160.0,96159.0,0.37254192]
[1739019326980,0.2089773,96160.0,96159.0,0.37254192]
[1739019327279,0.2089773,96160.0,96159.0,0.37154192]
[1739019327787,0.001,96160.0,96159.0,0.37154192]
[1739019336590,0.207965,96166.0,96159.0,0.37154192]
[1739019336900,0.207965,96166.0,96159.0,0.37354192]
[1739019337502,0.207965,96166.0,96159.0,0.37554192]
[1739019338197,0.207965,96166.0,96159.0,0.37354192]
[1739019338998,0.208965,96166.0,96159.0,0.37154192]
[1739019339192,0.208965,96166.0,96159.0,0.57952092]
[1739019350503,0.208965,96166.0,96160.0,0.2079772]
[1739019354704,0.001,96166.0,96159.0,0.37154192]
[1739019354899,0.2079773,96160.0,96159.0,0.37154192]
[1739019356606,0.2079773,96160.0,96159.0,0.37354192]
[1739019358216,0.2079773,96160.0,96159.0,0.37154192]
[1739019358418,0.2079773,96160.0,96159.0,0.37254192]
[1739019358808,0.2079773,96160.0,96159.0,0.37154192]
[1739019359007,0.2079773,96160.0,96159.0,0.37354192]
[1739019359713,0.2079773,96160.0,96159.0,0.01274192]
[1739019359908,0.2079773,96160.0,96159.0,0.37354192]
[1739019361510,0.2079773,96160.0,96159.0,0.37454192]
[1739019362114,0.2079773,96160.0,96159.0,0.37354192]
[1739019362419,0.2079773,96160.0,96159.0,0.37254192]
[1739019364422,0.2079773,96160.0,96159.0,0.37154192]
[1739019364726,0.2079773,96160.0,96159.0,0.37254192]
[1739019364913,0.2079773,96160.0,96159.0,0.37354192]
[1739019365119,0.2079773,96160.0,96159.0,0.37454192]
[1739019367522,0.2079773,96160.0,96159.0,0.37354192]
[1739019368031,0.2079773,96160.0,96159.0,0.37154192]
[1739019368237,0.2079773,96160.0,96159.0,0.37354192]
[1739019368636,0.2079773,96160.0,96159.0,0.37154192]
[1739019368940,0.2079773,96160.0,96159.0,0.37354192]
[1739019370527,0.2079773,96160.0,96159.0,0.37254192]
[1739019370728,0.2079773,96160.0,96159.0,0.37454192]
[1739019371129,0.2079773,96160.0,96159.0,0.37354192]
[1739019371335,0.2079773,96160.0,96159.0,0.37454192]
[1739019371923,0.2079773,96160.0,96159.0,0.37354192]
[1739019372130,0.2079773,96160.0,96159.0,0.37454192]
[1739019373733,0.2079773,96160.0,96159.0,0.37354192]
[1739019374230,0.2079773,96160.0,96159.0,0.01274192]
[1739019374430,0.2079773,96160.0,96159.0,0.37354192]
[1739019374631,0.2079773,96160.0,96159.0,0.37454192]
[1739019375743,0.2079773,96160.0,96159.0,0.37354192]
[1739019375937,0.2079773,96160.0,96159.0,0.37454192]
[1739019377439,0.2079773,96160.0,96159.0,0.01274192]
[1739019378043,0.2079773,96160.0,96159.0,0.01374192]
[1739019383246,0.2079773,96160.0,96159.0,0.01274192]
[1739019383544,0.2079773,96160.0,96159.0,0.01174192]
[1739019384348,0.2079773,96160.0,96159.0,0.001]
[1739019384647,0.2079686,96164.0,96159.0,0.001]
[1739019384949,0.0626,96165.0,96159.0,0.001]
[1739019385540,0.5687772,96160.0,96159.0,0.001]
[1739019386340,0.5687772,96160.0,96153.0,0.00015596]
[1739019386341,0.2079902,96154.0,96153.0,0.00015596]
[1739019387440,0.2079902,96154.0,96153.0,0.00315596]
[1739019387642,0.2079902,96154.0,96153.0,0.00515596]
[1739019391055,0.21858812,96154.0,96153.0,0.00515596]
[1739019394556,0.01059792,96154.0,96133.0,0.3608]
[1739019394852,0.2080053,96147.0,96133.0,0.3608]
[1739019395647,0.2080053,96147.0,96145.0,0.01093606]
[1739019396060,0.2080053,96147.0,96146.0,0.00656002]
[1739019396358,0.2080053,96147.0,96146.0,0.005]
[1739019396751,0.2080053,96147.0,96146.0,0.007]
[1739019397560,0.2080053,96147.0,96146.0,0.011]
[1739019418077,0.2080053,96147.0,96146.0,0.006]
[1739019418375,0.2090053,96147.0,96146.0,0.006]
[1739019419669,0.06924,96148.0,96140.0,0.01086556]
[1739019419974,0.2080232,96139.0,96137.0,0.00015596]
[1739019422077,0.2080232,96139.0,96137.0,0.00215596]
[1739019422477,0.2080232,96139.0,96137.0,0.00415596]
[1739019423069,0.2080232,96139.0,96137.0,0.00215596]
[1739019423267,0.2080232,96139.0,96137.0,0.00415596]
[1739019423874,0.2080232,96139.0,96137.0,0.00215596]
[1739019424079,0.2080232,96139.0,96137.0,0.00415596]
[1739019424274,0.00015596,96148.0,96137.0,0.00415596]
[1739019424580,0.2080076,96146.0,96143.0,0.3608]
[1739019424879,0.2080076,96146.0,96144.0,0.0332]
[1739019426382,0.00015596,96148.0,96144.0,0.0332]
[1739019427475,0.001,96146.0,96144.0,0.0332]
[1739019427674,0.001,96146.0,96144.0,0.04372667]
[1739019428280,0.001,96146.0,96144.0,0.04472667]
[1739019428686,0.001,96146.0,96144.0,0.04572667]
[1739019429081,0.00015596,96148.0,96144.0,0.04672667]
[1739019429790,0.00015596,96148.0,96144.0,0.04572667]
[1739019429990,0.00015596,96148.0,96144.0,0.04772667]
[1739019430291,0.00015596,96148.0,96144.0,0.04872667]
[1739019430686,0.00015596,96148.0,96144.0,0.04772667]
[1739019430886,0.00015596,96148.0,96144.0,0.04672667]
[1739019435694,0.00015596,96148.0,96144.0,0.40752667]
[1739019436701,0.00015596,96148.0,96144.0,0.04672667]
[1739019436901,0.00015596,96148.0,96144.0,0.40752667]
[1739019440401,0.00015596,96148.0,96144.0,0.40552667]
[1739019440603,0.00015596,96148.0,96144.0,0.40652667]
[1739019441005,0.0315,96171.0,96147.0,0.3608]
[1739019441303,0.2079765,96161.0,96159.0,0.3608]
[1739019442904,0.2109765,96161.0,96159.0,0.3608]
[1739019443210,0.003,96161.0,96159.0,0.3608]
[1739019443613,0.005,96161.0,96159.0,0.37130095]
[1739019443907,0.005,96161.0,96159.0,0.57927945]
[1739019444114,0.005,96161.0,96160.0,0.0319]
[1739019445205,0.002,96161.0,96160.0,0.2398772]
[1739019445407,0.00155994,96182.0,96169.0,0.2079577]
[1739019445708,0.00155994,96182.0,96172.0,0.06546446]
[1739019446012,0.00155994,96182.0,96173.0,0.0314]
[1739019446914,0.00355994,96182.0,96173.0,0.0314]
[1739019447412,0.00355994,96182.0,96173.0,0.0324]
[1739019447605,0.00455994,96182.0,96173.0,0.0324]
[1739019448403,0.00455994,96182.0,96173.0,0.0334]
[1739019448605,0.00455994,96182.0,96173.0,0.002]
[1739019449100,0.00455994,96182.0,96173.0,0.01282619]
[1739019449307,0.2079334,96181.0,96173.0,0.01282619]
[1739019449713,0.2079379,96179.0,96173.0,0.01282619]
[1739019451712,0.2089379,96179.0,96173.0,0.01282619]
[1739019454107,0.001,96179.0,96173.0,0.002]
[1739019454306,0.2079462,96175.0,96173.0,0.002]
[1739019455315,0.2079462,96175.0,96173.0,0.001]
[1739019455621,0.2089462,96175.0,96173.0,0.002]
[1739019455820,0.001,96175.0,96169.0,4.001e-05]
[1739019456021,0.2079556,96170.0,96169.0,4.001e-05]
[1739019457019,0.5687556,96170.0,96169.0,4.001e-05]
[1739019457418,0.5687556,96170.0,96169.0,0.00104001]
[1739019457913,0.5687556,96170.0,96149.0,0.3608]
[1739019458109,0.0938,96169.0,96149.0,0.3608]
[1739019458314,0.2079847,96157.0,96149.0,0.3608]
[1739019458818,0.2079902,96154.0,96140.0,0.36136]
[1739019459018,0.2079902,96154.0,96140.0,0.3608]
[1739019459220,0.2079902,96154.0,96144.0,0.00015596]
[1739019460022,0.2079902,96154.0,96153.0,0.00255992]
[1739019460523,0.2079902,96154.0,96153.0,0.00155992]
[1739019461425,0.2089902,96154.0,96153.0,0.00155992]
[1739019462129,0.2079902,96154.0,96153.0,0.00155992]
[1739019464519,0.2089902,96154.0,96153.0,0.00155992]
[1739019465028,0.2079902,96154.0,96153.0,0.00155992]
[1739019465226,0.2089902,96154.0,96153.0,0.00155992]
[1739019481635,0.21951203,96154.0,96153.0,0.00155992]
[1739019489046,0.2089902,96154.0,96153.0,0.00155992]
[1739019498548,0.2079902,96154.0,96153.0,0.00155992]
[1739019498848,0.2089902,96154.0,96153.0,0.00155992]
[1739019502258,0.2079902,96154.0,96153.0,0.00155992]
[1739019502448,0.2089902,96154.0,96153.0,0.00155992]
[1739019503857,0.2079902,96154.0,96153.0,0.00155992]
[1739019504058,0.2089902,96154.0,96153.0,0.00155992]
[1739019504659,0.2080032,96148.0,96147.0,0.01039965]
[1739019504860,0.0326,96153.0,96144.0,0.00015596]
[1739019505162,0.2080097,96145.0,96144.0,0.00015596]
[1739019506657,0.2080097,96145.0,96144.0,0.00315596]
[1739019506960,0.2080097,96145.0,96144.0,0.01397541]
[1739019507362,0.2080097,96145.0,96144.0,0.00315596]
[1739019507547,0.2080097,96145.0,96144.0,0.00615596]
[1739019543992,0.2079957,96152.0,96144.0,0.00615596]
[1739019544299,0.2079992,96150.0,96145.0,0.0316]
[1739019546593,0.2079992,96150.0,96145.0,0.0326]
[1739019549102,0.2079992,96150.0,96145.0,0.0336]
[1739019549803,0.2079992,96150.0,96145.0,0.0346]
[1739019550702,0.2079992,96150.0,96145.0,0.0336]
[1739019550889,0.2079992,96150.0,96145.0,0.0346]
[1739019552399,0.2080067,96147.0,96145.0,0.001]
[1739019552608,0.2080067,96147.0,96145.0,0.002]
[1739019553707,0.2080067,96147.0,96145.0,0.001]
[1739019553896,0.2080067,96147.0,96145.0,0.003]
[1739019554404,0.2080067,96147.0,96145.0,0.004]
[1739019573915,0.3608,96152.0,96145.0,0.004]
[1739019574116,0.2080075,96146.0,96145.0,0.004]
[1739019575318,0.2080075,96146.0,96145.0,0.002]
[1739019575616,0.2080075,96146.0,96145.0,0.003]
[1739019576510,0.2080075,96146.0,96145.0,0.005]
[1739019594022,0.2079984,96151.0,96145.0,0.005]
[1739019594227,0.2079984,96151.0,96145.0,0.0681]
[1739019594730,0.64727359,96157.0,96149.0,0.2080004]
[1739019594933,0.64655359,96157.0,96149.0,0.2080004]
[1739019595735,0.2079865,96156.0,96149.0,0.2080004]
[1739019596037,0.2079865,96156.0,96150.0,0.2079983]
[1739019597425,0.2079865,96156.0,96152.0,0.2079943]
[1739019598133,0.2099865,96156.0,96152.0,0.2079943]
[1739019598932,0.2079865,96156.0,96152.0,0.2099943]
[1739019600727,4e-05,96160.0,96157.0,0.2079824]
[1739019600929,1e-08,96163.0,96159.0,0.3608]
[1739019601123,0.00072,96179.0,96160.0,0.0311]
[1739019601328,0.06546446,96180.0,96178.0,0.2079372]
[1739019601622,0.06546446,96188.0,96179.0,0.0311]
[1739019601825,0.13092892,96189.0,96173.0,0.3608]
[1739019602027,0.2079411,96177.0,96173.0,0.3608]
[1739019602233,0.27339306,96183.0,96177.0,7.999e-05]
[1739019602534,0.001,96180.0,96178.0,0.001]
[1739019602737,0.001,96180.0,96179.0,0.001]
[1739019604340,0.20793,96182.0,96177.0,0.00107999]
[1739019604936,0.001,96180.0,96177.0,0.00107999]
[1739019605137,0.004,96180.0,96179.0,0.001]
[1739019605528,0.003,96180.0,96179.0,0.001]
[1739019605835,0.20893,96182.0,96177.0,0.00107999]
[1739019606035,0.20893,96182.0,96177.0,0.00207999]
[1739019606036,0.21193,96182.0,96177.0,0.00207999]
[1739019606238,0.2079329,96181.0,96177.0,0.00207999]
[1739019606436,0.001,96180.0,96177.0,0.00107999]
[1739019607933,0.001,96180.0,96177.0,7.999e-05]
[1739019608134,0.004,96180.0,96179.0,0.001]
[1739019608438,0.003,96180.0,96179.0,0.001]
[1739019608940,0.003,96180.0,96177.0,0.00107999]
[1739019609140,0.004,96180.0,96177.0,0.00107999]
[1739019609735,0.001,96180.0,96177.0,7.999e-05]
[1739019609940,0.004,96180.0,96179.0,0.001]
[1739019611128,0.003,96180.0,96179.0,0.001]
[1739019611334,0.004,96180.0,96177.0,0.00107999]
[1739019612636,0.001,96180.0,96177.0,7.999e-05]
[1739019612837,0.004,96180.0,96179.0,0.001]
[1739019614540,0.004,96180.0,96177.0,0.00107999]
[1739019615133,0.001,96180.0,96177.0,7.999e-05]
[1739019615339,0.004,96180.0,96179.0,0.001]
[1739019616043,0.004,96180.0,96177.0,0.00107999]
[1739019617343,0.003,96180.0,96177.0,0.00107999]
[1739019617543,0.001,96180.0,96177.0,7.999e-05]
[1739019617844,0.004,96180.0,96179.0,0.001]
[1739019618242,0.004,96180.0,96177.0,7.999e-05]
[1739019618441,0.004,96180.0,96177.0,0.00107999]
[1739019619043,0.001,96180.0,96177.0,7.999e-05]
[1739019619252,0.004,96180.0,96179.0,0.001]
[1739019620538,0.003,96180.0,96179.0,0.001]
[1739019620740,0.004,96180.0,96177.0,0.00107999]
[1739019621645,0.004,96180.0,96179.0,0.001]
[1739019622343,0.001,96180.0,96177.0,7.999e-05]
[1739019622547,0.2079378,96179.0,96177.0,0.00107999]
[1739019624049,0.2079378,96179.0,96177.0,7.999e-05]
[1739019624341,0.2089378,96179.0,96177.0,7.999e-05]
[1739019624750,0.2119378,96179.0,96177.0,0.00107999]
[1739019630449,0.3608,96178.0,96177.0,0.00107999]
[1739019631552,0.3638,96178.0,96177.0,0.00107999]
[1739019633156,0.2079513,96172.0,96170.0,7.999e-05]
[1739019634355,0.2109513,96172.0,96170.0,7.999e-05]
[1739019634862,0.2119513,96172.0,96170.0,7.999e-05]
[1739019648364,0.1945513,96172.0,96170.0,7.999e-05]
[1739019655876,0.004,96172.0,96170.0,7.999e-05]
[1739019656872,0.004,96172.0,96170.0,0.20803449]
[1739019657679,0.003,96172.0,96171.0,0.36095596]
[1739019657877,0.004,96172.0,96171.0,0.36095596]
[1739019658573,0.005,96172.0,96171.0,0.36095596]
[1739019659477,0.003,96172.0,96171.0,0.36295596]
[1739019660082,0.16124164,96181.0,96171.0,0.36295596]
[1739019660277,0.16124164,96181.0,96171.0,0.36595596]
[1739019660479,0.16124164,96181.0,96171.0,0.36395596]
[1739019660778,0.06546446,96181.0,96171.0,0.36695596]
[1739019661174,0.06546446,96181.0,96171.0,0.57490856]
[1739019661775,0.06546446,96181.0,96171.0,0.57190856]
[1739019661981,0.003,96172.0,96171.0,0.57190856]
[1739019662676,0.001,96181.0,96175.0,0.2079443]
[1739019663274,0.001,96181.0,96176.0,0.2079424]
[1739019663975,0.001,96181.0,96179.0,0.2079346]
[1739019664178,0.001,96181.0,96180.0,0.4549]
[1739019664580,4e-05,96184.0,96180.0,0.4549]
[1739019664979,4e-05,96184.0,96180.0,0.6628335]
[1739019665283,4e-05,96184.0,96180.0,0.4549]
[1739019666369,0.00104,96184.0,96180.0,0.46528024]
[1739019668883,0.00104,96184.0,96183.0,0.3608]
[1739019677183,0.34276651,96189.0,96183.0,0.5687273]
[1739019677587,0.34276651,96189.0,96183.0,0.3608]
[1739019677891,0.34276651,96189.0,96185.0,0.2079217]
[1739019678391,0.34776651,96189.0,96185.0,0.2079217]
[1739019679084,0.34776651,96189.0,96183.0,0.3608]
[1739019680190,0.34676651,96189.0,96183.0,0.3608]
[1739019680390,0.34676651,96189.0,96186.0,0.3608]
[1739019680586,0.55468181,96189.0,96186.0,0.3608]
[1739019680891,0.55168181,96189.0,96186.0,0.3608]
[1739019681093,0.2109153,96189.0,96186.0,0.3608]
[1739019681689,0.2089153,96189.0,96186.0,0.3608]
[1739019681995,0.003,96189.0,96186.0,0.3608]
[1739019688999,0.003,96189.0,96187.0,0.2079181]
[1739019690093,0.001,96189.0,96187.0,0.2079181]
[1739019690294,0.004,96189.0,96187.0,0.2079181]
[1739019691998,4e-05,96195.0,96192.0,0.2079079]
[1739019692200,4e-05,96195.0,96194.0,0.3608]
[1739019692588,4e-05,96195.0,96194.0,0.5687038]
[1739019693296,0.00304,96195.0,96194.0,0.3608]
[1739019693998,4e-05,96195.0,96194.0,0.3608]
[1739019694197,0.00304,96195.0,96194.0,0.3608]
[1739019695294,0.00304,96195.0,96194.0,0.37153227]
[1739019701698,0.00304,96195.0,96194.0,0.3608]
[1739019709504,0.00304,96195.0,96194.0,0.3921]
[1739019710202,0.00304,96195.0,96194.0,0.4252]
[1739019710897,0.00304,96195.0,96194.0,0.4559]
[1739019712113,0.00112815,96195.0,96194.0,0.4559]
[1739019715913,0.00112815,96195.0,96194.0,0.8167]
[1739019717605,0.00112815,96195.0,96194.0,0.0951]
[1739019717805,0.00112815,96195.0,96194.0,0.8167]
[1739019718210,0.00112815,96195.0,96194.0,0.88562]
[1739019719917,0.00112815,96195.0,96194.0,0.16402]
[1739019720220,0.00112815,96195.0,96194.0,0.88562]
[1739019721314,0.00112815,96195.0,96194.0,0.7216]
[1739019732831,0.00112815,96195.0,96194.0,0.3608]
[1739019735835,0.00112815,96195.0,96187.0,0.3608]
[1739019736031,0.2079145,96190.0,96187.0,0.3608]
[1739019737637,0.2079156,96189.0,96187.0,0.3608]
[1739019739349,0.2079153,96189.0,96187.0,0.3608]
[1739019744341,0.2079153,96189.0,96188.0,0.3608]
[1739019747343,0.2079153,96189.0,96185.0,0.2079229]
[1739019747537,0.2079153,96189.0,96188.0,0.3608]
[1739019759346,0.2079153,96189.0,96187.0,0.3608]
[1739019770258,0.2079232,96185.0,96184.0,0.3919]
[1739019770452,0.2079232,96185.0,96183.0,0.01041153]
[1739019771950,0.2079232,96185.0,96183.0,4e-05]
[1739019772345,0.2079513,96172.0,96170.0,7.999e-05]
[1739019773055,0.2079513,96172.0,96171.0,0.01066755]
[1739019773757,0.2079513,96172.0,96171.0,0.01466755]
[1739019775061,0.2079513,96172.0,96171.0,0.01766755]
[1739019775358,0.2079513,96172.0,96171.0,0.01666755]
[1739019775658,0.2079513,96172.0,96171.0,0.00615596]
[1739019777458,0.2079513,96172.0,96171.0,0.00415596]
[1739019777955,0.2079513,96172.0,96171.0,0.00215596]
[1739019778149,0.2079513,96172.0,96171.0,0.00415596]
[1739019789763,0.3608,96192.0,96173.0,0.2079473]
[1739019789764,0.2079364,96179.0,96173.0,0.2079473]
[1739019790661,4e-05,96183.0,96179.0,0.2079356]
[1739019790848,4e-05,96183.0,96180.0,0.0645]
[1739019792668,4e-05,96183.0,96180.0,0.4253]
[1739019794157,4e-05,96183.0,96182.0,0.3608]
[1739019802372,4e-05,96183.0,96180.0,0.0645]
[1739019804373,4e-05,96183.0,96182.0,0.3608]
[1739019810382,4e-05,96183.0,96180.0,0.0645]
[1739019810572,4e-05,96183.0,96179.0,0.01041115]
[1739019810771,4e-05,96183.0,96172.0,0.5692704]
[1739019811071,4e-05,96183.0,96172.0,0.5687504]
[1739019812177,0.2079325,96181.0,96172.0,0.5687504]
[1739019812971,0.207946,96175.0,96172.0,0.3608]
[1739019813174,0.207946,96175.0,96172.0,0.37145767]
[1739019813867,0.207946,96175.0,96172.0,0.01065767]
[1739019814073,0.207946,96175.0,96171.0,0.00019597]
[1739019814670,0.207933,96181.0,96176.0,0.2079413]
[1739019816079,0.207933,96181.0,96176.0,0.2089413]
[1739019816977,0.207933,96181.0,96179.0,0.3608]
[1739019817677,0.207933,96181.0,96177.0,0.2079401]
[1739019818085,0.207933,96181.0,96179.0,0.001]
[1739019818674,0.207933,96181.0,96179.0,0.3618]
[1739019818875,0.207933,96181.0,96179.0,0.3608]
[1739019819478,0.207933,96181.0,96179.0,0.3618]
[1739019820278,0.207933,96181.0,96179.0,0.001]
[1739019822886,0.207933,96181.0,96174.0,0.5687456]
[1739019823387,0.207933,96181.0,96179.0,0.001]
[1739019823591,4e-05,96183.0,96179.0,0.001]
[1739019823888,4e-05,96183.0,96180.0,0.2079338]
[1739019824285,4e-05,96183.0,96182.0,0.2079297]
[1739019824682,4e-05,96183.0,96182.0,0.5687297]
[1739019829792,4e-05,96183.0,96182.0,0.57935822]
[1739019831198,4e-05,96183.0,96182.0,0.21855822]
[1739019831386,4e-05,96183.0,96182.0,0.57935822]
[1739019851607,4e-05,96183.0,96182.0,0.21855822]
[1739019851808,4e-05,96183.0,96182.0,0.57935822]
[1739019860216,4e-05,96183.0,96182.0,0.21855822]
[1739019860416,4e-05,96183.0,96182.0,0.57935822]
[1739019875233,4e-05,96183.0,96182.0,0.37142852]
[1739019883950,4e-05,96183.0,96182.0,0.3608]
[1739019892249,4e-05,96183.0,96181.0,0.21844797]
[1739019892656,4e-05,96183.0,96182.0,0.3608]
[1739019896257,4e-05,96183.0,96182.0,0.3628]
[1739019896756,4e-05,96183.0,96182.0,0.3648]
[1739019897959,4e-05,96183.0,96182.0,0.004]
[1739019898147,0.2079676,96183.0,96182.0,0.004]
[1739019899055,0.2079676,96183.0,96182.0,0.002]
[1739019899358,0.2079411,96177.0,96174.0,0.01040503]
[1739019899553,0.0951,96176.0,96171.0,0.36099597]
[1739019899747,0.3030445,96176.0,96171.0,0.36099597]
[1739019900147,0.2079491,96174.0,96171.0,0.36099597]
[1739019900673,0.2079491,96174.0,96171.0,0.36399597]
[1739019901058,0.2079491,96174.0,96171.0,0.37429652]
[1739019902259,0.2079491,96174.0,96171.0,0.01349652]
[1739019902762,0.2079491,96174.0,96171.0,0.01649652]
[1739019902959,0.2079513,96172.0,96171.0,0.00319597]
[1739019903258,0.2079818,96158.0,96156.0,0.3608]
[1739019903659,0.2079818,96158.0,96156.0,0.01068921]
[1739019903957,0.2079818,96158.0,96148.0,0.2080017]